bitfinex/quotes_BTCUSD_20241123
["timestamp","ask_amount","ask_price","bid_price","bid_amount"]
[1732334026886,0.07860028,98318.0,98313.0,0.04295612]
[1732334026887,0.07860028,98318.0,98316.0,0.37596343]
[1732334027560,0.07987178,98317.0,98313.0,0.04295612]
[1732334029951,0.07987178,98317.0,98314.0,0.00451199]
[1732334032542,0.07987178,98317.0,98315.0,0.15]
[1732334033019,0.07987178,98317.0,98316.0,0.00468492]
[1732334035380,0.07987178,98317.0,98316.0,0.42598399]
[1732334036278,0.07987178,98317.0,98316.0,0.47218399]
[1732334036488,0.07860028,98317.0,98316.0,0.05088492]
[1732334044237,0.07860028,98317.0,98316.0,0.00468492]
[1732334044686,0.07860028,98317.0,98313.0,0.04295612]
[1732334044924,0.07860028,98317.0,98316.0,0.00468919]
[1732334045144,0.07860028,98317.0,98314.0,0.00468922]
[1732334045384,0.07860028,98317.0,98316.0,0.00468919]
[1732334045607,0.07860028,98317.0,98315.0,0.0046892]
[1732334045853,0.07860028,98317.0,98316.0,0.00468919]
[1732334046315,0.07860028,98317.0,98313.0,0.04295612]
[1732334046763,0.07860028,98317.0,98314.0,0.00468922]
[1732334047011,0.00127152,98316.0,98314.0,0.00468922]
[1732334052075,0.00127152,98316.0,98315.0,0.42163106]
[1732334052301,0.00127152,98316.0,98315.0,0.42163377]
[1732334052519,0.00127152,98316.0,98315.0,0.42632623]
[1732334052747,0.00127152,98316.0,98315.0,0.42632722]
[1732334053171,0.2050718,98316.0,98315.0,0.42632722]
[1732334053620,0.2070718,98316.0,98315.0,0.42632722]
[1732334055400,0.2070718,98316.0,98315.0,0.15469246]
[1732334056490,0.2070718,98316.0,98315.0,0.42634321]
[1732334060273,0.2070718,98316.0,98315.0,0.27720418]
[1732334060487,0.2070718,98316.0,98315.0,0.15555286]
[1732334061425,0.2070718,98316.0,98315.0,0.00555286]
[1732334061844,0.2070718,98316.0,98315.0,0.0008604]
[1732334064252,0.2070718,98316.0,98308.0,0.25427511]
[1732334064462,0.2070718,98316.0,98315.0,0.22640657]
[1732334065041,0.2070718,98316.0,98315.0,0.23110838]
[1732334065257,0.2070718,98316.0,98315.0,0.23110822]
[1732334065713,0.0798718,98316.0,98315.0,0.05420181]
[1732334066195,0.0798718,98316.0,98315.0,0.00470181]
[1732334066399,0.0798718,98316.0,98310.0,0.0495]
[1732334066625,0.0798718,98316.0,98315.0,0.00470171]
[1732334066842,0.0798718,98316.0,98310.0,0.0495]
[1732334067053,0.0798718,98316.0,98315.0,0.00470171]
[1732334067268,0.0798718,98316.0,98310.0,0.0495]
[1732334067525,0.0798718,98316.0,98315.0,0.00470171]
[1732334067760,0.0798718,98316.0,98310.0,0.0495]
[1732334067972,0.0798718,98316.0,98311.0,0.00470177]
[1732334068197,0.0798718,98316.0,98310.0,0.0495]
[1732334068427,0.0798718,98316.0,98312.0,0.00470176]
[1732334068641,0.0798718,98316.0,98311.0,0.00470177]
[1732334068860,0.0798718,98316.0,98313.0,0.00470174]
[1732334069092,0.0798718,98316.0,98312.0,0.00470176]
[1732334069308,0.0798718,98316.0,98314.0,0.00470173]
[1732334069553,0.0798718,98316.0,98313.0,0.00470174]
[1732334069755,0.0798718,98316.0,98315.0,0.00470173]
[1732334070182,0.0798718,98316.0,98310.0,0.0495]
[1732334070455,0.0798718,98316.0,98315.0,0.00470173]
[1732334070671,0.0798718,98316.0,98310.0,0.0495]
[1732334070921,0.0798718,98316.0,98315.0,0.00470173]
[1732334071149,0.0798718,98316.0,98310.0,0.0495]
[1732334071372,0.0798718,98316.0,98311.0,0.00470179]
[1732334071595,0.0798718,98316.0,98310.0,0.0495]
[1732334071810,0.0798718,98316.0,98315.0,0.0008604]
[1732334072242,0.0798718,98316.0,98315.0,0.00556213]
[1732334072459,0.0798718,98316.0,98315.0,0.0008604]
[1732334072671,0.0798718,98316.0,98315.0,0.00556213]
[1732334072885,0.0798718,98316.0,98315.0,0.0008604]
[1732334073113,0.0798718,98316.0,98315.0,0.00556213]
[1732334073338,0.0798718,98316.0,98315.0,0.0008604]
[1732334073579,0.0798718,98316.0,98315.0,0.00556213]
[1732334074033,0.0798718,98316.0,98315.0,0.00556221]
[1732334074541,0.0798718,98316.0,98315.0,0.4272499]
[1732334076813,0.0798718,98316.0,98315.0,0.15556221]
[1732334077058,0.0798718,98316.0,98315.0,0.04745006]
[1732334077960,0.07779695,98316.0,98315.0,0.31921763]
[1732334078201,0.07779695,98316.0,98315.0,0.46921763]
[1732334078425,0.07779695,98316.0,98315.0,0.19745006]
[1732334078650,0.07779695,98316.0,98315.0,0.46921763]
[1732334079144,0.07779695,98316.0,98315.0,0.19745006]
[1732334082433,0.07779695,98316.0,98315.0,0.04745006]
[1732334083804,0.07951815,98316.0,98315.0,0.04745006]
[1732334084262,0.07951815,98316.0,98315.0,0.08620206]
[1732334087753,0.07951815,98316.0,98315.0,0.50796963]
[1732334087988,0.07951815,98316.0,98315.0,0.23620206]
[1732334089214,0.07951815,98316.0,98315.0,0.08620206]
[1732334095242,0.07951815,98316.0,98315.0,0.23620206]
[1732334095472,0.07951815,98316.0,98315.0,0.50810082]
[1732334095954,0.07951815,98316.0,98315.0,0.23620206]
[1732334096429,0.07951815,98316.0,98315.0,0.50810102]
[1732334098971,0.16121815,98316.0,98315.0,0.50810102]
[1732334099419,0.16248797,98316.0,98315.0,0.50810102]
[1732334099626,0.16248797,98316.0,98315.0,0.23620206]
[1732334101048,0.16448797,98316.0,98315.0,0.23620206]
[1732334102037,0.16448797,98316.0,98315.0,0.08620206]
[1732334103607,0.16248797,98316.0,98315.0,0.08620206]
[1732334105486,0.16248797,98316.0,98315.0,0.46289654]
[1732334106167,0.16448797,98316.0,98315.0,0.46289654]
[1732334106380,0.16248797,98316.0,98315.0,0.23620206]
[1732334107245,0.16248797,98316.0,98315.0,0.08620206]
[1732334107490,0.16248797,98316.0,98315.0,0.46281429]
[1732334109176,0.16248797,98316.0,98315.0,0.08620206]
[1732334109400,0.16248797,98316.0,98315.0,0.23620206]
[1732334110557,0.16248797,98316.0,98315.0,0.08620206]
[1732334113669,0.08078797,98316.0,98315.0,0.08620206]
[1732334113901,0.07951815,98316.0,98315.0,0.08150025]
[1732334114358,0.07951815,98316.0,98315.0,0.08600523]
[1732334114798,0.08078797,98316.0,98315.0,0.08600523]
[1732334115260,0.08278797,98316.0,98315.0,0.08600523]
[1732334115469,0.08151815,98316.0,98315.0,0.08600523]
[1732334116593,0.07951815,98316.0,98315.0,0.08600523]
[1732334116783,0.08078797,98316.0,98315.0,0.08600523]
[1732334119267,0.08278797,98316.0,98315.0,0.08600523]
[1732334119475,0.07951815,98316.0,98315.0,0.08600523]
[1732334119683,0.08078797,98316.0,98315.0,0.08600523]
[1732334123552,0.08278797,98316.0,98315.0,0.08600523]
[1732334123757,0.08151815,98316.0,98315.0,0.08600523]
[1732334123998,0.08151815,98316.0,98315.0,0.46256082]
[1732334125331,0.08151815,98316.0,98315.0,0.08600523]
[1732334125955,0.08151815,98316.0,98315.0,0.46258715]
[1732334126811,0.08151815,98316.0,98315.0,0.23600523]
[1732334127205,0.08151815,98316.0,98315.0,0.08600523]
[1732334127682,0.08151815,98316.0,98315.0,0.31258568]
[1732334127937,0.08151815,98316.0,98315.0,0.46258037]
[1732334128179,0.08151815,98316.0,98315.0,0.23600523]
[1732334128422,0.07951815,98316.0,98315.0,0.23600523]
[1732334128600,0.08078797,98316.0,98315.0,0.23600523]
[1732334129030,0.08078797,98316.0,98315.0,0.08600523]
[1732334129476,0.07951815,98316.0,98315.0,0.08600523]
[1732334129690,0.08078797,98316.0,98315.0,0.08600523]
[1732334130792,0.07951815,98316.0,98315.0,0.08600523]
[1732334131216,0.08078797,98316.0,98315.0,0.08600523]
[1732334132789,0.07951815,98316.0,98315.0,0.08600523]
[1732334134320,0.08078797,98316.0,98315.0,0.08600523]
[1732334137089,0.08278797,98316.0,98315.0,0.08600523]
[1732334137311,0.08151815,98316.0,98315.0,0.08600523]
[1732334141146,0.08151815,98316.0,98312.0,0.18131065]
[1732334141393,0.07979695,98313.0,98311.0,0.18131065]
[1732334141582,0.08106677,98312.0,98308.0,0.04011062]
[1732334141841,0.002,98308.0,98307.0,0.18217125]
[1732334142063,0.07690665,98308.0,98307.0,0.0008606]
[1732334142500,0.07690665,98308.0,98307.0,0.04283014]
[1732334143637,0.07690665,98308.0,98307.0,0.19283014]
[1732334145627,0.07690665,98308.0,98307.0,0.04283014]
[1732334159083,0.07690665,98308.0,98307.0,0.19283014]
[1732334161197,0.07690665,98308.0,98307.0,0.37402816]
[1732334161425,0.07690665,98308.0,98307.0,0.04283014]
[1732334161634,0.07690665,98308.0,98307.0,0.37401841]
[1732334161867,0.07690665,98308.0,98307.0,0.19283014]
[1732334163165,0.07690665,98308.0,98307.0,0.37402276]
[1732334164054,0.00126982,98314.0,98308.0,0.15]
[1732334164270,0.07690665,98309.0,98308.0,0.15]
[1732334166009,0.07690665,98309.0,98307.0,0.23963014]
[1732334166259,0.00126982,98308.0,98307.0,0.23963014]
[1732334166471,0.00126982,98308.0,98307.0,0.42082276]
[1732334166713,0.00126982,98308.0,98307.0,0.37402276]
[1732334166928,0.07317647,98308.0,98307.0,0.04283014]
[1732334167142,0.07317647,98308.0,98307.0,0.37400902]
[1732334167359,0.07317647,98308.0,98307.0,0.19283014]
[1732334168216,0.07317647,98308.0,98307.0,0.04283014]
[1732334168890,0.07317647,98308.0,98307.0,0.0008606]
[1732334169804,0.12247647,98308.0,98307.0,0.0008606]
[1732334170026,0.19757647,98308.0,98307.0,0.0008606]
[1732334171200,0.29757647,98308.0,98307.0,0.0008606]
[1732334181793,0.14827647,98308.0,98307.0,0.0008606]
[1732334202834,0.14827647,98308.0,98292.0,0.0017208]
[1732334202835,0.14827647,98308.0,98292.0,0.15]
[1732334203972,0.14827647,98308.0,98291.0,0.0403468]
[1732334204174,0.14827647,98308.0,98284.0,0.15]
[1732334204616,0.14827647,98308.0,98288.0,0.15]
[1732334205484,0.0451,98307.0,98288.0,0.15]
[1732334205654,0.0451,98307.0,98289.0,0.049]
[1732334209448,0.0451,98307.0,98288.0,0.15]
[1732334209649,0.0451,98307.0,98289.0,0.0008605]
[1732334210058,0.0451,98307.0,98287.0,0.06737964]
[1732334210286,0.0451,98307.0,98287.0,0.04078285]
[1732334210490,0.0451,98307.0,98285.0,0.049]
[1732334210703,0.0451,98307.0,98286.0,0.18316299]
[1732334211611,0.0451,98307.0,98287.0,0.18144179]
[1732334212482,0.0451,98307.0,98289.0,0.15]
[1732334212703,0.0451,98307.0,98289.0,0.33144179]
[1732334213395,0.07317647,98296.0,98295.0,0.1814867]
[1732334213612,0.07317647,98296.0,98295.0,0.15]
[1732334213813,0.07317647,98297.0,98296.0,0.15]
[1732334214027,0.07317647,98297.0,98296.0,0.199]
[1732334214457,0.07317647,98300.0,98296.0,0.199]
[1732334214708,0.07317647,98300.0,98298.0,0.199]
[1732334217550,0.07317647,98300.0,98299.0,0.37668342]
[1732334218228,0.07317647,98300.0,98299.0,0.37668378]
[1732334218672,0.07317647,98300.0,98299.0,0.15]
[1732334220138,0.07317647,98300.0,98298.0,0.199]
[1732334220966,0.07317647,98300.0,98298.0,0.049]
[1732334224540,0.07317647,98299.0,98298.0,0.049]
[1732334224751,0.07317647,98297.0,98296.0,0.04106578]
[1732334224972,0.07317647,98297.0,98295.0,0.15]
[1732334225200,0.07317647,98297.0,98295.0,0.1913454]
[1732334225424,0.07317647,98297.0,98295.0,0.0413454]
[1732334225643,0.07317647,98297.0,98294.0,0.15]
[1732334225863,0.07317647,98295.0,98293.0,0.15]
[1732334226082,0.07317647,98295.0,98292.0,0.1996]
[1732334226265,0.07317647,98294.0,98292.0,0.1996]
[1732334226913,0.07317647,98294.0,98292.0,0.24064517]
[1732334228902,0.07317647,98294.0,98292.0,0.09064517]
[1732334234104,0.07317647,98294.0,98292.0,0.24064517]
[1732334235406,0.07317647,98294.0,98292.0,0.5126657]
[1732334235546,0.07317647,98294.0,98292.0,0.09064517]
[1732334235766,0.07317647,98294.0,98292.0,0.5126657]
[1732334235969,0.07317647,98294.0,98293.0,0.15]
[1732334237031,0.07317647,98294.0,98292.0,0.04104517]
[1732334237382,0.07317647,98294.0,98289.0,0.1508606]
[1732334237588,0.07317647,98294.0,98289.0,0.19272788]
[1732334237797,0.07317647,98294.0,98289.0,0.46474841]
[1732334239294,0.07317647,98294.0,98292.0,0.27202053]
[1732334239744,0.07317647,98294.0,98293.0,0.42202053]
[1732334239946,0.07317647,98294.0,98293.0,0.15]
[1732334240578,0.07317647,98294.0,98293.0,0.42202053]
[1732334240996,0.07317647,98294.0,98291.0,0.42202053]
[1732334241220,0.07317647,98294.0,98291.0,0.42202777]
[1732334242048,0.07317647,98294.0,98293.0,0.15]
[1732334242896,0.07317647,98294.0,98293.0,0.42202777]
[1732334243366,0.07317647,98294.0,98293.0,0.15]
[1732334243581,0.07317647,98294.0,98293.0,0.42202777]
[1732334244210,0.07317647,98294.0,98293.0,0.15]
[1732334244481,0.07317647,98294.0,98291.0,0.15]
[1732334244664,0.07317647,98294.0,98293.0,0.15]
[1732334246170,0.07317647,98290.0,98289.0,0.04272788]
[1732334246377,0.07317647,98290.0,98289.0,0.3148398]
[1732334246588,0.07317647,98290.0,98289.0,0.4648398]
[1732334247049,0.07317647,98290.0,98289.0,0.19272788]
[1732334247468,0.07317647,98290.0,98289.0,0.4648398]
[1732334247676,0.07317647,98290.0,98289.0,0.19272788]
[1732334248188,0.07317647,98290.0,98289.0,0.4648398]
[1732334248413,0.07317647,98290.0,98289.0,0.19272788]
[1732334248662,0.07317647,98290.0,98289.0,0.04272788]
[1732334248867,0.07317647,98290.0,98289.0,0.19272788]
[1732334250355,0.07317647,98290.0,98289.0,0.04272788]
[1732334253942,0.07317647,98290.0,98289.0,0.4648398]
[1732334254076,0.07317647,98290.0,98289.0,0.19272788]
[1732334255094,0.07317647,98290.0,98289.0,0.04272788]
[1732334255821,0.07317647,98290.0,98289.0,0.46498365]
[1732334256030,0.15507647,98290.0,98289.0,0.46498365]
[1732334256246,0.15507647,98290.0,98289.0,0.46497874]
[1732334257041,0.15507647,98290.0,98289.0,0.04272788]
[1732334257222,0.15507647,98290.0,98289.0,0.4650007]
[1732334257655,0.15507647,98290.0,98289.0,0.19272788]
[1732334258503,0.15507647,98290.0,98289.0,0.4650007]
[1732334259119,0.15507647,98290.0,98289.0,0.19272788]
[1732334259804,0.15593717,98290.0,98289.0,0.19272788]
[1732334260881,0.15593717,98290.0,98289.0,0.04272788]
[1732334261121,0.15593717,98290.0,98289.0,0.19272788]
[1732334263056,0.07403717,98290.0,98289.0,0.19272788]
[1732334264831,0.07403717,98290.0,98289.0,0.46513347]
[1732334265391,0.07403717,98290.0,98289.0,0.19272788]
[1732334265841,0.07403717,98290.0,98289.0,0.46521942]
[1732334266049,0.07403717,98290.0,98289.0,0.19272788]
[1732334267111,0.07403717,98290.0,98289.0,0.46526198]
[1732334267317,0.07403717,98290.0,98289.0,0.46527575]
[1732334267787,0.07403717,98290.0,98289.0,0.19272788]
[1732334268707,0.07403717,98290.0,98289.0,0.04272788]
[1732334284877,0.15493717,98290.0,98289.0,0.04272788]
[1732334293642,0.15493717,98290.0,98281.0,0.27287941]
[1732334293870,0.15493717,98290.0,98281.0,0.27288022]
[1732334294303,0.15493717,98290.0,98280.0,0.35063225]
[1732334294977,0.15493717,98290.0,98283.0,0.04277264]
[1732334295196,0.15493717,98290.0,98283.0,0.0008604]
[1732334297197,0.07317647,98284.0,98283.0,0.0008604]
[1732334300281,0.07317647,98284.0,98283.0,0.0487604]
[1732334300781,0.07317647,98284.0,98283.0,0.1987604]
[1732334301876,0.07317647,98284.0,98283.0,0.0008604]
[1732334304089,0.07317647,98284.0,98281.0,0.42295107]
[1732334306404,0.07317647,98284.0,98282.0,0.0008607]
[1732334313579,0.07317647,98284.0,98282.0,0.1508607]
[1732334314026,0.07317647,98284.0,98283.0,0.55304776]
[1732334318622,0.07489767,98284.0,98282.0,0.0008607]
[1732334320845,0.07489767,98284.0,98283.0,0.55305306]
[1732334321266,0.07489767,98284.0,98283.0,0.15]
[1732334322108,0.07489767,98284.0,98282.0,0.0008607]
[1732334330249,0.07489767,98284.0,98282.0,0.00062005]
[1732334336184,0.07489767,98284.0,98283.0,0.55314416]
[1732334336412,0.07489767,98284.0,98283.0,0.55314264]
[1732334337701,0.07489767,98284.0,98282.0,0.00062005]
[1732334337922,0.07489767,98284.0,98283.0,0.15]
[1732334339219,0.07489767,98284.0,98283.0,0.55314991]
[1732334339627,0.07489767,98284.0,98283.0,0.15]
[1732334340680,0.07489767,98284.0,98282.0,0.00062005]
[1732334354751,0.0017212,98284.0,98283.0,0.1238]
[1732334354970,0.0017212,98284.0,98283.0,0.27481732]
[1732334355268,0.0008607,98290.0,98284.0,0.15]
[1732334355500,0.0008607,98290.0,98286.0,0.15]
[1732334355737,0.0008607,98294.0,98286.0,0.15]
[1732334355738,0.0008607,98294.0,98288.0,0.15]
[1732334355955,0.0008607,98294.0,98289.0,0.02401721]
[1732334356170,0.0008607,98294.0,98289.0,0.04856428]
[1732334357693,0.0008607,98294.0,98290.0,0.02382228]
[1732334357912,0.07317647,98325.0,98297.0,0.1229]
[1732334358137,0.07317647,98325.0,98323.0,0.15]
[1732334358355,0.07317647,98325.0,98318.0,0.15]
[1732334358562,0.07317647,98325.0,98319.0,0.00101698]
[1732334359041,0.0787,98334.0,98319.0,0.00101698]
[1732334359042,0.07317647,98334.0,98319.0,0.02401698]
[1732334359271,0.1285,98340.0,98323.0,0.42163862]
[1732334359456,0.07317647,98335.0,98323.0,0.42163862]
[1732334360184,0.07317647,98336.0,98323.0,0.44463862]
[1732334360425,0.07317647,98336.0,98323.0,0.023]
[1732334360676,0.07317647,98336.0,98323.0,0.17401688]
[1732334360892,0.15137647,98351.0,98327.0,0.1012]
[1732334361130,0.07317647,98346.0,98343.0,0.15]
[1732334361336,0.07317647,98353.0,98346.0,0.15]
[1732334361609,0.07317647,98347.0,98346.0,0.15]
[1732334362257,0.20127647,98347.0,98346.0,0.15]
[1732334362494,0.07317647,98333.0,98330.0,0.07775203]
[1732334362695,0.07317647,98333.0,98327.0,0.33062111]
[1732334363208,0.07317647,98333.0,98327.0,0.15]
[1732334363430,0.07317647,98333.0,98326.0,0.15]
[1732334364305,0.07317647,98333.0,98324.0,0.15]
[1732334365601,0.07317647,98333.0,98325.0,0.02992269]
[1732334366453,0.07489687,98333.0,98325.0,0.02992269]
[1732334376451,0.07317647,98328.0,98325.0,0.02992269]
[1732334376673,0.0017204,98333.0,98323.0,0.11868538]
[1732334376674,0.07317647,98324.0,98323.0,0.04093335]
[1732334376918,0.07317647,98324.0,98310.0,0.07775203]
[1732334377429,0.07317647,98319.0,98310.0,0.07775203]
[1732334377644,0.07317647,98319.0,98309.0,0.07775203]
[1732334377852,0.07317647,98318.0,98309.0,0.07775203]
[1732334378061,0.07317647,98318.0,98308.0,0.07775203]
[1732334380641,0.07317647,98318.0,98309.0,0.00101705]
[1732334390136,0.07317647,98318.0,98309.0,0.00187715]
[1732334391225,0.07317647,98318.0,98309.0,0.15187715]
[1732334392387,0.07317647,98318.0,98311.0,0.15]
[1732334393251,0.07317647,98318.0,98313.0,0.15]
[1732334394221,0.07317647,98318.0,98313.0,0.33063937]
[1732334394445,0.07317647,98318.0,98315.0,0.15]
[1732334394651,0.07317647,98318.0,98317.0,0.15]
[1732334396315,0.07317647,98318.0,98317.0,0.33063937]
[1732334396540,0.07317647,98318.0,98316.0,0.15]
[1732334397376,0.04967739,98318.0,98317.0,0.15]
[1732334398592,0.04967739,98318.0,98310.0,0.15]
[1732334399011,0.04967739,98318.0,98309.0,0.1508601]
[1732334399137,0.04967739,98318.0,98312.0,0.15]
[1732334400178,0.04967739,98318.0,98315.0,0.15]
[1732334400354,0.04967739,98318.0,98315.0,0.42095906]
[1732334400701,0.04967739,98318.0,98309.0,0.0008601]
[1732334400908,0.04967739,98318.0,98309.0,0.0238601]
[1732334402930,0.04967739,98318.0,98309.0,0.1738601]
[1732334404706,0.04967739,98313.0,98309.0,0.1508601]
[1732334404959,0.17977739,98310.0,98309.0,0.0008601]
[1732334405611,0.17977739,98310.0,98309.0,0.18237602]
[1732334406012,0.17977739,98310.0,98309.0,0.18238579]
[1732334406276,0.17977739,98310.0,98309.0,0.1508601]
[1732334406922,0.17977739,98310.0,98309.0,0.37772874]
[1732334407361,0.17977739,98310.0,98309.0,0.0008601]
[1732334410780,0.1301,98310.0,98309.0,0.0008601]
[1732334411096,0.17977739,98310.0,98309.0,0.0008601]
[1732334411317,0.12980744,98310.0,98309.0,0.0008601]
[1732334411966,0.17948483,98310.0,98309.0,0.0008601]
[1732334412426,0.12980744,98310.0,98309.0,0.0008601]
[1732334412922,0.12969113,98310.0,98309.0,0.0008601]
[1732334413135,0.17936852,98310.0,98309.0,0.0008601]
[1732334413346,0.17892908,98310.0,98309.0,0.1508601]
[1732334414404,0.12925169,98310.0,98309.0,0.0008601]
[1732334415541,0.04967739,98313.0,98309.0,0.1508601]
[1732334415755,0.04967739,98314.0,98309.0,0.55281137]
[1732334415982,0.09747739,98316.0,98311.0,0.15]
[1732334416198,0.0017204,98318.0,98311.0,0.15]
[1732334416199,0.0017204,98318.0,98315.0,0.40195127]
[1732334416421,0.0017204,98318.0,98312.0,0.023]
[1732334416422,0.0017204,98318.0,98316.0,0.5795166]
[1732334416713,0.0017204,98318.0,98317.0,0.15]
[1732334416927,0.00151009,98318.0,98317.0,0.15101701]
[1732334417150,0.00151009,98318.0,98317.0,0.17763681]
[1732334417367,0.00151009,98318.0,98317.0,0.1766198]
[1732334417592,0.00151009,98318.0,98317.0,0.20063677]
[1732334417812,0.00151009,98318.0,98317.0,0.10053677]
[1732334418060,0.00151009,98318.0,98317.0,0.63778535]
[1732334418283,0.00151009,98318.0,98317.0,0.6782852]
[1732334418914,0.00133503,98318.0,98317.0,0.6782852]
[1732334419139,0.00133503,98318.0,98317.0,0.6781322]
[1732334419850,0.0017204,98333.0,98318.0,0.173]
[1732334420048,0.0017204,98333.0,98324.0,0.173]
[1732334420275,0.0017204,98333.0,98332.0,0.55167376]
[1732334420520,0.0017204,98333.0,98332.0,0.15]
[1732334421288,0.0017204,98333.0,98332.0,0.55164444]
[1732334422952,0.0017204,98333.0,98332.0,0.59303764]
[1732334424428,0.0017204,98333.0,98332.0,0.1913932]
[1732334425369,0.0017204,98333.0,98332.0,0.0413932]
[1732334425634,0.0017204,98333.0,98331.0,0.15]
[1732334425863,0.0017204,98333.0,98331.0,0.19015991]
[1732334426502,0.0017204,98333.0,98331.0,0.04015991]
[1732334426733,0.0017204,98333.0,98330.0,0.15]
[1732334428080,0.0017204,98333.0,98329.0,0.15]
[1732334428551,0.0017204,98333.0,98330.0,0.023]
[1732334429456,0.0819,98332.0,98330.0,0.023]
[1732334429682,0.0017204,98333.0,98330.0,0.02401688]
[1732334429928,0.0017204,98333.0,98331.0,0.00101685]
[1732334430162,0.0017204,98333.0,98329.0,0.37739154]
[1732334430362,0.0017204,98333.0,98326.0,0.15]
[1732334431246,0.0017204,98333.0,98324.0,0.39164596]
[1732334432338,0.0017204,98333.0,98325.0,0.14022361]
[1732334432554,0.00055511,98333.0,98325.0,0.14022361]
[1732334432764,0.00055511,98333.0,98324.0,0.11994377]
[1732334432991,0.00055511,98333.0,98324.0,0.04104377]
[1732334433407,0.00055511,98333.0,98323.0,0.07775203]
[1732334435862,0.00055511,98333.0,98332.0,0.37624452]
[1732334436270,0.00055511,98333.0,98332.0,0.15]
[1732334436672,0.0494,98334.0,98333.0,0.15]
[1732334438352,0.0494,98334.0,98331.0,0.22617284]
[1732334438591,0.0494,98334.0,98332.0,0.15]
[1732334440325,0.0494,98334.0,98333.0,0.37617284]
[1732334440751,0.04901422,98334.0,98333.0,0.37617284]
[1732334441773,0.09869161,98334.0,98333.0,0.15]
[1732334441976,0.09869161,98334.0,98332.0,0.15]
[1732334442191,0.04967739,98334.0,98332.0,0.15]
[1732334442401,0.04967739,98334.0,98331.0,0.0414624]
[1732334442631,0.04967739,98334.0,98320.0,0.15550406]
[1732334442632,0.04967739,98334.0,98322.0,0.15]
[1732334442837,0.04967739,98334.0,98329.0,0.15]
[1732334443723,0.0498,98333.0,98329.0,0.15]
[1732334443928,0.0498,98333.0,98331.0,0.22617284]
[1732334444371,0.0498,98333.0,98332.0,0.15]
[1732334444579,0.0498,98333.0,98332.0,0.37615594]
[1732334446342,0.0498,98333.0,98325.0,0.15]
[1732334446550,0.0498,98333.0,98332.0,0.22617339]
[1732334446749,0.0498,98333.0,98332.0,0.15]
[1732334446997,0.0819,98335.0,98333.0,0.15]
[1732334447331,0.0806,98343.0,98333.0,0.15]
[1732334447515,0.0806,98351.0,98340.0,0.15]
[1732334447769,0.0806,98351.0,98350.0,0.15]
[1732334447770,0.13027739,98351.0,98350.0,0.15]
[1732334449084,0.13027739,98351.0,98343.0,0.15]
[1732334449293,0.13027739,98351.0,98350.0,0.3759893]
[1732334452230,0.13027739,98351.0,98343.0,0.42127341]
[1732334452671,0.04967739,98351.0,98343.0,0.49345793]
[1732334452865,0.04967739,98351.0,98344.0,0.30237663]
[1732334453067,0.04967739,98351.0,98344.0,0.03110322]
[1732334453197,0.04967739,98351.0,98345.0,0.15]
[1732334453400,0.04967739,98351.0,98346.0,0.03110321]
[1732334454664,0.04967739,98351.0,98346.0,0.03008651]
[1732334455580,0.04967739,98354.0,98346.0,0.03008651]
[1732334455804,0.04967739,98361.0,98347.0,0.0010167]
[1732334456015,0.04967739,98361.0,98343.0,0.04209801]
[1732334456016,0.04967739,98361.0,98353.0,0.15]
[1732334456220,0.04967739,98361.0,98354.0,0.02875134]
[1732334456885,0.04967739,98355.0,98354.0,0.02875134]
[1732334457103,0.17157739,98355.0,98354.0,0.02875134]
[1732334457334,0.17157739,98355.0,98354.0,0.06988342]
[1732334457547,0.17157739,98355.0,98354.0,0.02875134]
[1732334461076,0.17329839,98355.0,98354.0,0.02875134]
[1732334461937,0.05139839,98355.0,98354.0,0.02875134]
[1732334464200,0.05139839,98355.0,98354.0,0.30002475]
[1732334464442,0.05139839,98355.0,98354.0,0.17875134]
[1732334465540,0.05139839,98355.0,98354.0,0.02875134]
[1732334470302,0.05635839,98355.0,98354.0,0.02875134]
[1732334470722,0.006681,98355.0,98354.0,0.05742617]
[1732334471528,0.006681,98355.0,98354.0,0.05844281]
[1732334471972,0.006681,98355.0,98354.0,0.47914619]
[1732334472647,0.006681,98355.0,98354.0,0.20742617]
[1732334473139,0.006681,98355.0,98354.0,0.05742617]
[1732334474487,0.006681,98355.0,98354.0,0.05844279]
[1732334474707,0.006681,98355.0,98354.0,0.05742617]
[1732334474923,0.006681,98355.0,98354.0,0.47922311]
[1732334475144,0.006681,98355.0,98354.0,0.20742617]
[1732334476126,0.006681,98355.0,98354.0,0.05742617]
[1732334479423,0.006681,98355.0,98354.0,0.47922669]
[1732334481441,0.18125839,98355.0,98354.0,0.02875134]
[1732334482115,0.18125839,98355.0,98352.0,0.15]
[1732334482352,0.04967739,98353.0,98352.0,0.15]
[1732334485192,0.04967739,98353.0,98352.0,0.27184817]
[1732334485427,0.04967739,98353.0,98352.0,0.42184817]
[1732334488250,0.04967739,98353.0,98346.0,0.0413417]
[1732334488473,0.04967739,98353.0,98347.0,0.01358722]
[1732334488949,0.006681,98355.0,98344.0,0.04126665]
[1732334489225,0.006681,98355.0,98315.0,0.30582919]
[1732334489226,0.2249,98335.0,98315.0,0.40140082]
[1732334489466,0.1,98329.0,98312.0,0.40140082]
[1732334489713,0.14917149,98328.0,98300.0,0.07775203]
[1732334489971,0.14917149,98328.0,98314.0,0.04075288]
[1732334490221,0.14917149,98328.0,98310.0,0.07775203]
[1732334490222,0.14917149,98328.0,98313.0,0.04012576]
[1732334490472,0.14917149,98328.0,98308.0,0.22698748]
[1732334490714,0.14917149,98328.0,98304.0,0.22698748]
[1732334490986,0.14917149,98328.0,98300.0,0.04316394]
[1732334491201,0.14917149,98328.0,98295.0,0.04024907]
[1732334491433,0.15015229,98328.0,98295.0,0.04024907]
[1732334491677,0.15015229,98328.0,98290.0,0.07775203]
[1732334491894,0.15015229,98328.0,98284.0,0.0425027]
[1732334492129,0.023,98319.0,98303.0,0.18136245]
[1732334492384,0.1,98309.0,98295.0,0.18136245]
[1732334492630,0.1,98309.0,98284.0,0.0008602]
[1732334492631,0.00127171,98308.0,98284.0,0.18222265]
[1732334492905,0.09852354,98309.0,98284.0,0.0008602]
[1732334493114,0.00127097,98308.0,98284.0,0.0008602]
[1732334500820,0.09951714,98309.0,98284.0,0.0008602]
[1732334501943,0.00127174,98308.0,98277.0,0.03428629]
[1732334502174,0.00127174,98308.0,98272.0,0.0008606]
[1732334503297,0.00127174,98308.0,98273.0,0.081525]
[1732334503446,0.00127174,98308.0,98273.0,0.040547]
[1732334505266,0.11871036,98300.0,98273.0,0.040547]
[1732334505468,0.09951714,98309.0,98273.0,0.040547]
[1732334505469,0.11871036,98290.0,98273.0,0.040547]
[1732334505695,0.10747187,98289.0,98273.0,0.040547]
[1732334506296,0.10747187,98289.0,98272.0,0.0008606]
[1732334506501,0.10747187,98289.0,98272.0,0.0414126]
[1732334508807,0.10747187,98289.0,98273.0,0.0008607]